fUSD/lending_fUSD_20240421
["ID","MTS","AMOUNT","RATE_DAILY","PERIOD"]
[323134116,1713703842593,-1112.17,0.00016712,2]
[323134117,1713703842602,-500.0,0.00016712,2]
[323134119,1713703842611,-500.0,0.00016712,2]
[323134120,1713703842621,-734.8,0.00016712,2]
[323134121,1713703842630,-1364.27,0.00016712,2]
[323134122,1713703842639,-500.0,0.00016712,2]
[323134123,1713703842648,-500.0,0.00016712,2]
[323134124,1713703842657,-500.0,0.00016712,2]
[323134126,1713703842667,-500.0,0.00016712,2]
[323134128,1713703842676,-500.0,0.00016712,2]
[323134130,1713703842685,-868.35,0.00016712,2]
[323134132,1713703842694,-500.0,0.00016712,2]
[323134133,1713703842703,-817.11,0.00016712,2]
[323134134,1713703842713,-601.46,0.00016712,2]
[323134135,1713703842722,-1398.98,0.00016712,2]
[323134136,1713703842731,-1865.99,0.00016712,2]
[323134137,1713703843037,-500.0,0.00016712,2]
[323134138,1713703843068,-530.16,0.00016712,2]
[323134139,1713703843089,-150.0,0.00016712,2]
[323134140,1713703843100,-2047.34,0.00016712,2]
[323134141,1713703843112,-793.89,0.00016712,2]
[323134142,1713703843122,-500.0,0.00016712,2]
[323134143,1713703843131,-500.0,0.00016712,2]
[323134144,1713703843140,-500.0,0.00016712,2]
[323134145,1713703843150,-500.0,0.00016712,2]
[323134146,1713703843159,-575.02,0.00016712,2]
[323134147,1713703843169,-1170.77,0.00016712,2]
[323134148,1713703843178,-1593.43,0.00016712,2]
[323134149,1713703843188,-595.22,0.00016712,2]
[323134150,1713703843197,-604.06,0.00016712,2]
[323134151,1713703843207,-702.98,0.00016712,2]
[323134152,1713703843216,-151.0,0.00016712,2]
[323134153,1713703843225,-151.0,0.00016712,2]
[323134154,1713703843235,-500.0,0.00016712,2]
[323134155,1713703843245,-558.95,0.00016712,2]
[323134156,1713703843254,-2060.1,0.00016712,2]
[323134157,1713703843264,-500.0,0.00016712,2]
[323134158,1713703843273,-500.0,0.00016712,2]
[323134159,1713703843282,-926.58,0.00016712,2]
[323134160,1713703843292,-2018.56,0.00016712,2]
[323134161,1713703843303,-873.45,0.00016712,2]
[323134162,1713703843313,-607.23,0.00016712,2]
[323134163,1713703843322,-502.75305929,0.00016712,2]
[323134164,1713703843331,-500.0,0.00016712,2]
[323134165,1713703843341,-1503.38,0.00016712,2]
[323134166,1713703843351,-500.0,0.00016712,2]
[323134167,1713703843360,-847.45,0.00016712,2]
[323134168,1713703843369,-500.0,0.00016712,2]
[323134169,1713703843379,-1239.54,0.00016712,2]
[323134170,1713703843388,-760.18,0.00016712,2]
[323134171,1713703843398,-1006.77,0.00016712,2]
[323134172,1713703843407,-1850.19,0.00016712,2]
[323134173,1713703843416,-1602.29,0.00016712,2]
[323134174,1713703843426,-715.92,0.00016712,2]
[323134175,1713703843435,-780.11,0.00016712,2]
[323134176,1713703843444,-991.79,0.00016712,2]
[323134177,1713703843454,-500.0,0.00016712,2]
[323134178,1713703843463,-670.99,0.00016712,2]
[323134179,1713703843472,-500.0,0.00016712,2]
[323134180,1713703843481,-500.0,0.00016712,2]
[323134181,1713703843491,-1188.1,0.00016712,2]
[323134182,1713703843500,-505.25709566,0.00016712,2]
[323134183,1713703843510,-500.0,0.00016712,2]
[323134184,1713703843520,-646.16,0.00016712,2]
[323134185,1713703843530,-1590.79,0.00016712,2]
[323134186,1713703843540,-715.59,0.00016712,2]
[323134187,1713703843552,-958.53,0.00016712,2]
[323134188,1713703843562,-554.32,0.00016712,2]
[323134189,1713703843573,-500.0,0.00016712,2]
[323134190,1713703843582,-709.68,0.00016712,2]
[323134191,1713703843591,-1289.35,0.00016712,2]
[323134192,1713703843599,-551.52,0.00016712,2]
[323134193,1713703843609,-500.0,0.00016712,2]
[323134194,1713703843619,-797.41,0.00016712,2]
[323134195,1713703843630,-781.73,0.00016712,2]
[323134196,1713703843639,-500.0,0.00016712,2]
[323134197,1713703843649,-2874.38,0.00016712,2]
[323134198,1713703843658,-500.0,0.00016712,2]
[323134199,1713703843668,-500.0,0.00016712,2]
[323134200,1713703843678,-2659.55,0.00016712,2]
[323134201,1713703843687,-500.0,0.00016712,2]
[323134202,1713703843696,-500.0,0.00016712,2]
[323134203,1713703843705,-750.38,0.00016712,2]
[323134204,1713703843714,-500.0,0.00016712,2]
[323134205,1713703843723,-945.29,0.00016712,2]
[323134206,1713703843732,-1789.82,0.00016712,2]
[323134207,1713703843741,-848.01,0.00016712,2]
[323134208,1713703843750,-500.0,0.00016712,2]
[323134209,1713703843760,-1511.02696456,0.00016712,2]
[323134210,1713703843804,-86.29303544,0.00016712,2]
[323134211,1713703843812,-2231.0,0.00016712,2]
[323134212,1713703843821,-500.83580086,0.00016712,2]
[323134213,1713703843830,-503.03,0.00016712,2]
[323134214,1713703843839,-1727.37,0.00016712,2]
[323134215,1713703843849,-150.0,0.00016719,2]
[323134216,1713703843859,-200.0,0.00016744,2]
[323134217,1713703843868,-183.877206,0.00016744,2]
[323134218,1713703843877,-150.0,0.00016747,2]
[323134219,1713703843886,-1038.9939577,0.00016786,2]
[323134220,1713703845330,-500.0,0.00016438,2]
[323134221,1713703845340,-444.26754077,0.00016712,2]
[323134222,1713703845350,-854.26773835,0.00016786,2]
[323134223,1713703845359,-1070.54,0.00016799,2]
[323134224,1713703845369,-1070.54,0.00016799,2]
[323134225,1713703845378,-1070.54,0.00016799,2]
[323134226,1713703845387,-500.0,0.00016799,2]
[323134227,1713703845398,-115.80472088,0.00016799,2]
[323134228,1713703845409,-384.19527912,0.00016799,2]
[323134229,1713703845418,-500.0,0.00016799,2]
[323134230,1713703845428,-1369.11,0.00016799,2]
[323134231,1713703845437,-1369.11,0.00016799,2]
[323134232,1713703845446,-1369.11,0.00016799,2]
[323134233,1713703845456,-300.0,0.00016799,2]
[323134234,1713703845465,-549.0,0.000168,2]
[323134235,1713703845474,-42210.07759135,0.000168,5]
[323134236,1713703845486,-240163.06232974,0.000168,5]
[323134237,1713703845496,-482.0,0.000168,2]
[323134238,1713703845505,-2023.07034,0.000168,2]
[323134239,1713703845514,-651.300516,0.000168,2]
[323134240,1713703845523,-651.300516,0.000168,2]
[323134241,1713703845533,-218.31034,0.000168,2]
[323134242,1713703845542,-218.31034,0.000168,2]
[323134244,1713703845552,-1000.0,0.000168,2]
[323134246,1713703845561,-151.0,0.000168,2]
[323134248,1713703845570,-800.0,0.00016849,2]
[323134250,1713703845579,-2524.49212641,0.00016859,2]
[323134252,1713703845589,-1070.54,0.00016866,2]
[323134253,1713703845598,-500.0,0.00016866,2]
[323134255,1713703845607,-1369.11,0.00016866,2]
[323134257,1713703845617,-300.0,0.00016866,2]
[323134259,1713703845626,-300.0,0.00016866,2]
[323134261,1713703845636,-300.0,0.00016866,2]
[323134263,1713703845645,-300.0,0.00016866,2]
[323134280,1713703845854,-300.0,0.00016866,2]
[323134281,1713703845864,-300.0,0.00016866,2]
[323134282,1713703845873,-358.88518242,0.00016866,2]
[323134283,1713703845882,-192.3092952,0.00016867,2]
[323134284,1713703845891,-441.4040768,0.00016867,2]
[323134285,1713703845900,-2338.9484875,0.00016867,2]
[323134286,1713703845909,-52789.7752862,0.00016867,2]
[323134287,1713703845918,-211.789718,0.00016869,2]
[323134288,1713703845927,-3260.258068,0.00016869,2]
[323134289,1713703845937,-294.30106279,0.00016879,2]
[323134290,1713703845946,-72496.14577712,0.0001688,2]
[323134291,1713703845955,-7438.12038546,0.0001688,2]
[323134292,1713703845965,-772.53323901,0.0001688,2]
[323134293,1713703845974,-492.10954814,0.00016886,2]
[323134294,1713703845985,-678.18366,0.00016886,2]
[323134295,1713703845996,-2417.90061913,0.00016886,2]
[323134296,1713703846011,-907.87201028,0.00016886,2]
[323134297,1713703846024,-339.76603386,0.00016886,2]
[323134298,1713703846036,-8832.92037062,0.00016886,2]
[323134299,1713703846045,-651.300516,0.00016886,2]
[323134300,1713703846058,-651.300516,0.00016886,2]
[323134301,1713703846069,-218.31034,0.00016886,2]
[323134302,1713703846078,-218.31034,0.00016886,2]
[323134303,1713703846087,-151.0,0.00016886,2]
[323134304,1713703846096,-699.3507,0.00016886,2]
[323134305,1713703846106,-203.1674593,0.0001689,2]
[323134306,1713703846115,-155.0,0.0001689,2]
[323134307,1713703846125,-325.37654758,0.00016984,2]
[323134308,1713703846134,-1942.4335044,0.00016984,2]
[323134309,1713703846143,-1070.54,0.00016985,2]
[323134310,1713703846152,-1070.54,0.00016985,2]
[323134311,1713703846161,-1070.54,0.00016985,2]
[323134312,1713703846170,-1070.54,0.00016985,2]
[323134313,1713703846179,-1070.54,0.00016985,2]
[323134314,1713703846188,-500.0,0.00016985,2]
[323134315,1713703846197,-500.0,0.00016985,2]
[323134316,1713703846206,-500.0,0.00016985,2]
[323134317,1713703846215,-426.64471994,0.00016985,2]
[323134318,1713703846224,-1369.11,0.00016985,2]
[323134319,1713703846233,-1369.11,0.00016985,2]
[323134320,1713703846242,-1369.11,0.00016985,2]
[323134321,1713703846251,-1369.11,0.00016985,2]
[323134322,1713703846260,-1369.11,0.00016985,2]
[323134323,1713703846269,-572.33,0.00016986,2]
[323134324,1713703846278,-630.34,0.00016986,2]
[323134325,1713703846287,-500.0,0.00016986,2]
[323134326,1713703846297,-606.55,0.00016986,2]
[323134327,1713703846306,-500.0,0.00016986,2]
[323134328,1713703846316,-794.99,0.00016986,2]
[323134329,1713703846326,-500.0,0.00016986,2]
[323134330,1713703846335,-90.06462239,0.00016986,2]
[323134331,1713703846347,-577.08537761,0.00016986,2]
[323134332,1713703846356,-731.28,0.00016986,2]
[323134333,1713703846365,-500.0,0.00016986,2]
[323134334,1713703846374,-617.43,0.00016986,2]
[323134335,1713703846383,-797.28,0.00016986,2]
[323134336,1713703846392,-870.35,0.00016986,2]
[323134337,1713703846402,-657.43,0.00016986,2]
[323134338,1713703846411,-682.55,0.00016986,2]
[323134339,1713703846420,-500.0,0.00016986,2]
[323134340,1713703846429,-1076.85,0.00016986,2]
[323134341,1713703846439,-636.47,0.00016986,2]
[323134342,1713703846449,-564.89,0.00016986,2]
[323134343,1713703846458,-143.84637339,0.00016986,2]
[323134344,1713703846470,-756.58362661,0.00016986,2]
[323134345,1713703846479,-818.54,0.00016986,2]
[323134346,1713703846488,-877.26,0.00016986,2]
[323134347,1713703846497,-1305.63,0.00016986,2]
[323134348,1713703846507,-649.52,0.00016986,2]
[323134349,1713703846516,-815.01,0.00016986,2]
[323134350,1713703846525,-1222.11,0.00016986,2]
[323134351,1713703846534,-700.25,0.00016986,2]
[323134352,1713703846543,-537.33,0.00016986,2]
[323134353,1713703846553,-1388.09,0.00016986,2]
[323134354,1713703846561,-701.07,0.00016986,2]
[323134355,1713703846571,-875.52,0.00016986,2]
[323134356,1713703846580,-500.0,0.00016986,2]
[323134357,1713703846590,-966.81,0.00016986,2]
[323134358,1713703846599,-500.0,0.00016986,2]
[323134359,1713703846609,-1112.61,0.00016986,2]
[323134360,1713703846618,-787.21,0.00016986,2]
[323134361,1713703846627,-500.0,0.00016986,2]
[323134362,1713703846636,-920.72,0.00016986,2]
[323134363,1713703846645,-948.74,0.00016986,2]
[323134364,1713703846654,-513.32,0.00016986,2]
[323134365,1713703846663,-702.95,0.00016986,2]
[323134366,1713703846672,-2016.61,0.00016986,2]
[323134367,1713703846681,-337.6,0.00016986,2]
[323134368,1713703846690,-1035.72,0.00016986,2]
[323134369,1713703846699,-500.0,0.00016986,2]
[323134370,1713703846708,-798.22,0.00016986,2]
[323134371,1713703846717,-1151.14,0.00016986,2]
[323134372,1713703846726,-891.59,0.00016986,2]
[323134373,1713703846735,-1881.96,0.00016986,2]
[323134374,1713703846744,-1284.68,0.00016986,2]
[323134375,1713703846753,-746.21,0.00016986,2]
[323134376,1713703846763,-528.29,0.00016986,2]
[323134377,1713703846772,-500.0,0.00016986,2]
[323134378,1713703846781,-1005.87,0.00016986,2]
[323134379,1713703846791,-1895.51,0.00016986,2]
[323134380,1713703846801,-952.01,0.00016986,2]
[323134381,1713703846810,-1290.82,0.00016986,2]
[323134382,1713703846819,-840.27,0.00016986,2]
[323134383,1713703846828,-690.15,0.00016986,2]
[323134384,1713703846838,-500.0,0.00016986,2]
[323134385,1713703846848,-500.0,0.00016986,2]
[323134386,1713703846858,-147.0348895,0.00016986,2]
[323134387,1713703846871,-768.4951105,0.00016986,2]
[323134388,1713703846880,-4.26970442,0.00016986,2]
[323134389,1713703847459,-955.05029558,0.00016986,2]
[323134390,1713703847469,-720.36,0.00016986,2]
[323134391,1713703847478,-643.38,0.00016986,2]
[323134392,1713703847487,-1127.34,0.00016986,2]
[323134393,1713703847496,-712.54,0.00016986,2]
[323134394,1713703847505,-728.93,0.00016986,2]
[323134395,1713703847514,-500.0,0.00016986,2]
[323134396,1713703847525,-500.0,0.00016986,2]
[323134397,1713703847534,-837.27,0.00016986,2]
[323134398,1713703847543,-1200.69,0.00016986,2]
[323134399,1713703847552,-575.82,0.00016986,2]
[323134400,1713703847562,-500.0,0.00016986,2]
[323134401,1713703847570,-500.0,0.00016986,2]
[323134402,1713703847580,-1491.61,0.00016986,2]
[323134403,1713703847589,-500.0,0.00016986,2]
[323134404,1713703847598,-729.42,0.00016986,2]
[323134405,1713703847607,-1071.35,0.00016986,2]
[323134406,1713703847616,-381.22,0.00016986,2]
[323134407,1713703847625,-981.15,0.00016986,2]
[323134408,1713703847634,-766.16,0.00016986,2]
[323134409,1713703847643,-500.0,0.00016986,2]
[323134410,1713703847652,-500.0,0.00016986,2]
[323134411,1713703847662,-1289.16,0.00016986,2]
[323134412,1713703847670,-500.0,0.00016986,2]
[323134413,1713703847679,-756.39,0.00016986,2]
[323134414,1713703847688,-796.74,0.00016986,2]
[323134415,1713703847697,-500.0,0.00016986,2]
[323134416,1713703847707,-500.0,0.00016986,2]
[323134417,1713703847716,-500.0,0.00016986,2]
[323134418,1713703847726,-500.0,0.00016986,2]
[323134419,1713703847736,-903.36,0.00016986,2]
[323134420,1713703847745,-726.79,0.00016986,2]
[323134421,1713703847755,-500.0,0.00016986,2]
[323134422,1713703847766,-867.78,0.00016986,2]
[323134423,1713703847776,-500.0,0.00016986,2]
[323134424,1713703847786,-500.0,0.00016986,2]
[323134425,1713703847795,-215.62,0.00016986,2]
[323134426,1713703847804,-959.32,0.00016986,2]
[323134427,1713703847814,-500.0,0.00016986,2]
[323134428,1713703847823,-500.0,0.00016986,2]
[323134429,1713703847832,-500.0,0.00016986,2]
[323134430,1713703847842,-1030.26,0.00016986,2]
[323134431,1713703847851,-1338.06,0.00016986,2]
[323134432,1713703847860,-500.0,0.00016986,2]
[323134433,1713703847869,-500.0,0.00016986,2]
[323134434,1713703847879,-500.0,0.00016986,2]
[323134435,1713703847889,-500.0,0.00016986,2]
[323134436,1713703847898,-645.21,0.00016986,2]
[323134437,1713703847908,-500.0,0.00016986,2]
[323134438,1713703847917,-691.32,0.00016986,2]
[323134439,1713703847926,-705.19,0.00016986,2]
[323134440,1713703847935,-500.0,0.00016986,2]
[323134441,1713703847944,-150.0,0.00016986,2]
[323134442,1713703847954,-500.0,0.00016986,2]
[323134443,1713703847963,-643.31,0.00016986,2]
[323134444,1713703847972,-500.0,0.00016986,2]
[323134445,1713703847982,-500.0,0.00016986,2]
[323134446,1713703847991,-500.0,0.00016986,2]
[323134447,1713703848000,-555.86,0.00016986,2]
[323134448,1713703848009,-1033.5,0.00016986,2]
[323134449,1713703848020,-998.78,0.00016986,2]
[323134450,1713703848032,-715.09,0.00016986,2]
[323134451,1713703848041,-1195.92,0.00016986,2]
[323134452,1713703848051,-500.0,0.00016986,2]
[323134453,1713703848060,-500.0,0.00016986,2]
[323134454,1713703848070,-1091.89,0.00016986,2]
[323134455,1713703848079,-500.0,0.00016986,2]
[323134456,1713703848089,-924.95,0.00016986,2]
[323134457,1713703848099,-736.26,0.00016986,2]
[323134458,1713703848108,-631.94,0.00016986,2]
[323134459,1713703848117,-1041.24,0.00016986,2]
[323134460,1713703848126,-1020.3,0.00016986,2]
[323134461,1713703848135,-536.71,0.00016986,2]
[323134462,1713703848145,-500.0,0.00016986,2]
[323134463,1713703848155,-207.16,0.00016986,2]
[323134464,1713703848164,-500.0,0.00016986,2]
[323134465,1713703848173,-501.07,0.00016986,2]
[323134466,1713703848182,-815.09,0.00016986,2]
[323134467,1713703848192,-500.0,0.00016986,2]
[323134468,1713703848201,-556.84,0.00016986,2]
[323134469,1713703848210,-500.0,0.00016986,2]
[323134470,1713703848219,-1393.98,0.00016986,2]
[323134471,1713703848229,-957.57,0.00016986,2]
[323134472,1713703848238,-500.0,0.00016986,2]
[323134473,1713703848247,-904.56,0.00016986,2]
[323134474,1713703848256,-921.66,0.00016986,2]
[323134475,1713703848264,-1599.79,0.00016986,2]
[323134476,1713703848274,-500.0,0.00016986,2]
[323134477,1713703848283,-500.0,0.00016986,2]
[323134478,1713703848293,-500.0,0.00016986,2]
[323134479,1713703848303,-500.0,0.00016986,2]
[323134480,1713703848311,-701.7,0.00016986,2]
[323134481,1713703848320,-651.300516,0.00016986,2]
[323134482,1713703848330,-180.72,0.00016986,2]
[323134483,1713703848339,-500.0,0.00016986,2]
[323134484,1713703848348,-651.300516,0.00016986,2]
[323134485,1713703848358,-954.11,0.00016986,2]
[323134486,1713703848368,-1515.84,0.00016986,2]
[323134487,1713703848377,-500.0,0.00016986,2]
[323134488,1713703848386,-818.41,0.00016986,2]
[323134489,1713703848395,-500.0,0.00016986,2]
[323134490,1713703848404,-9640.44,0.00016986,2]
[323134491,1713703848414,-806.22,0.00016986,2]
[323134492,1713703848423,-1307.97,0.00016986,2]
[323134493,1713703848432,-841.31,0.00016986,2]
[323134494,1713703848442,-744.07,0.00016986,2]
[323134495,1713703848450,-661.88,0.00016986,2]
[323134496,1713703848459,-500.31,0.00016986,2]
[323134497,1713703848468,-500.0,0.00016986,2]
[323134498,1713703848477,-500.0,0.00016986,2]
[323134499,1713703848486,-500.0,0.00016986,2]
[323134500,1713703848495,-500.0,0.00016986,2]
[323134501,1713703848503,-564.96,0.00016986,2]
[323134502,1713703848512,-500.0,0.00016986,2]
[323134503,1713703848521,-1109.92,0.00016986,2]
[323134504,1713703848530,-500.0,0.00016986,2]
[323134505,1713703848539,-781.83,0.00016986,2]
[323134506,1713703848548,-325.13,0.00016986,2]
[323134507,1713703848557,-2136.36,0.00016986,2]
[323134508,1713703848566,-686.02,0.00016986,2]
[323134509,1713703848575,-673.9,0.00016986,2]
[323134510,1713703848584,-2698.1,0.00016986,2]
[323134511,1713703848593,-522.53,0.00016986,2]
[323134512,1713703848601,-500.0,0.00016986,2]
[323134513,1713703848610,-794.51,0.00016986,2]
[323134514,1713703848618,-249.64,0.00016986,2]
[323134515,1713703848627,-988.09,0.00016986,2]
[323134516,1713703848636,-218.31034,0.00016986,2]
[323134517,1713703848645,-687.74,0.00016986,2]
[323134518,1713703848655,-834.62,0.00016986,2]
[323134519,1713703848664,-566.87,0.00016986,2]
[323134520,1713703848673,-1366.95,0.00016986,2]
[323134521,1713703848682,-218.31034,0.00016986,2]
[323134522,1713703848691,-1307.05,0.00016986,2]
[323134523,1713703848700,-633.04,0.00016986,2]
[323134524,1713703848709,-1063.71,0.00016986,2]
[323134525,1713703848718,-726.14,0.00016986,2]
[323134526,1713703848727,-657.69,0.00016986,2]
[323134527,1713703848737,-627.06,0.00016986,2]
[323134528,1713703848746,-663.49,0.00016986,2]
[323134529,1713703848755,-3069.34,0.00016986,2]
[323134530,1713703848764,-1206.78,0.00016986,2]
[323134531,1713703848773,-1667.8,0.00016986,2]
[323134532,1713703848782,-1235.07,0.00016986,2]
[323134533,1713703848791,-785.6,0.00016986,2]
[323134534,1713703848802,-1777.79,0.00016986,2]
[323134535,1713703848811,-1164.03,0.00016986,2]
[323134536,1713703848820,-702.79,0.00016986,2]
[323134537,1713703848830,-793.56,0.00016986,2]
[323134538,1713703848839,-500.0,0.00016986,2]
[323134539,1713703848849,-690.91,0.00016986,2]
[323134540,1713703848858,-1011.83,0.00016986,2]
[323134541,1713703848867,-633.58,0.00016986,2]
[323134542,1713703848876,-500.0,0.00016986,2]
[323134543,1713703848886,-159.75,0.00016986,2]
[323134544,1713703848895,-934.07,0.00016986,2]
[323134545,1713703848905,-804.03,0.00016986,2]
[323134546,1713703848914,-1353.25,0.00016986,2]
[323134547,1713703848923,-865.97,0.00016986,2]
[323134548,1713703848932,-649.86,0.00016986,2]
[323134549,1713703848941,-500.0,0.00016986,2]
[323134550,1713703848950,-1369.4,0.00016986,2]
[323134551,1713703848960,-747.02,0.00016986,2]
[323134552,1713703848969,-461.79,0.00016986,2]
[323134553,1713703848978,-1369.91,0.00016986,2]
[323134554,1713703848987,-500.0,0.00016986,2]
[323134555,1713703848996,-1082.87,0.00016986,2]
[323134556,1713703849006,-1282.09,0.00016986,2]
[323134557,1713703849015,-500.0,0.00016986,2]
[323134558,1713703849027,-11591.68,0.00016986,2]
[323134559,1713703849036,-500.0,0.00016986,2]
[323134560,1713703849046,-500.0,0.00016986,2]
[323134561,1713703849055,-780.15,0.00016986,2]
[323134562,1713703849066,-1338.42,0.00016986,2]
[323134563,1713703849075,-632.01,0.00016986,2]
[323134564,1713703849084,-1407.68,0.00016986,2]
[323134565,1713703849094,-500.0,0.00016986,2]
[323134566,1713703849104,-897.72,0.00016986,2]
[323134567,1713703849114,-500.0,0.00016986,2]
[323134568,1713703849123,-881.82,0.00016986,2]
[323134569,1713703849132,-1814.96,0.00016986,2]
[323134570,1713703849142,-506.59,0.00016986,2]
[323134571,1713703849150,-1994.37,0.00016986,2]
[323134572,1713703849159,-500.06,0.00016986,2]
[323134573,1713703849168,-837.83,0.00016986,2]
[323134574,1713703849177,-641.08,0.00016986,2]
[323134575,1713703849186,-774.16,0.00016986,2]
[323134576,1713703849195,-679.73,0.00016986,2]
[323134577,1713703849204,-1410.25,0.00016986,2]
[323134578,1713703849213,-975.76,0.00016986,2]
[323134579,1713703849222,-599.79,0.00016986,2]
[323134580,1713703849231,-1592.34,0.00016986,2]
[323134581,1713703849241,-1165.17,0.00016986,2]
[323134582,1713703849250,-536.61,0.00016986,2]
[323134583,1713703849259,-235.31,0.00016986,2]
[323134584,1713703849268,-1112.17,0.00016986,2]
[323134585,1713703849278,-500.0,0.00016986,2]
[323134586,1713703849286,-500.0,0.00016986,2]
[323134587,1713703849296,-734.8,0.00016986,2]
[323134588,1713703849306,-1364.27,0.00016986,2]
[323134589,1713703849314,-486.86495889,0.00016986,2]
[323134590,1713703849323,-375.38,0.00016986,2]
[323134591,1713703849332,-500.0,0.00016986,2]
[323134592,1713703849341,-500.0,0.00016986,2]
[323134593,1713703849350,-500.0,0.00016986,2]
[323134594,1713703849359,-868.35,0.00016986,2]
[323134595,1713703849369,-500.0,0.00016986,2]
[323134596,1713703849379,-817.11,0.00016986,2]
[323134597,1713703849388,-601.46,0.00016986,2]
[323134598,1713703849398,-1865.99,0.00016986,2]
[323134599,1713703849407,-1398.98,0.00016986,2]
[323134600,1713703849416,-356.98845918,0.00016986,2]
[323134601,1713703849426,-530.16,0.00016986,2]
[323134602,1713703849435,-2047.34,0.00016986,2]
[323134603,1713703849444,-793.89,0.00016986,2]
[323134604,1713703849452,-500.0,0.00016986,2]
[323134605,1713703849462,-500.0,0.00016986,2]
[323134606,1713703849471,-500.0,0.00016986,2]
[323134607,1713703849480,-500.0,0.00016986,2]
[323134608,1713703849489,-575.02,0.00016986,2]
[323134609,1713703849498,-1170.77,0.00016986,2]
[323134610,1713703849507,-595.22,0.00016986,2]
[323134611,1713703849517,-1593.43,0.00016986,2]
[323134612,1713703849526,-604.06,0.00016986,2]
[323134613,1713703849535,-702.98,0.00016986,2]
[323134614,1713703849544,-151.0,0.00016986,2]
[323134615,1713703849554,-2060.1,0.00016986,2]
[323134616,1713703849564,-500.0,0.00016986,2]
[323134617,1713703849573,-926.58,0.00016986,2]
[323134618,1713703849583,-2018.56,0.00016986,2]
[323134619,1713703849593,-873.45,0.00016986,2]
[323134620,1713703849602,-607.23,0.00016986,2]
[323134621,1713703849611,-500.0,0.00016986,2]
[323134622,1713703849621,-1503.38,0.00016986,2]
[323134623,1713703849630,-500.0,0.00016986,2]
[323134624,1713703849639,-847.45,0.00016986,2]
[323134625,1713703849648,-1239.54,0.00016986,2]
[323134626,1713703849836,-760.18,0.00016986,2]
[323134627,1713703849846,-1006.77,0.00016986,2]
[323134628,1713703849856,-1850.19,0.00016986,2]
[323134629,1713703849865,-1602.29,0.00016986,2]
[323134630,1713703849875,-715.92,0.00016986,2]
[323134631,1713703849885,-780.11,0.00016986,2]
[323134632,1713703849894,-991.79,0.00016986,2]
[323134633,1713703849904,-500.0,0.00016986,2]
[323134634,1713703849913,-670.99,0.00016986,2]
[323134635,1713703849923,-500.0,0.00016986,2]
[323134636,1713703849932,-500.0,0.00016986,2]
[323134637,1713703849942,-1188.1,0.00016986,2]
[323134638,1713703849951,-500.0,0.00016986,2]
[323134639,1713703849961,-646.16,0.00016986,2]
[323134640,1713703849970,-1590.79,0.00016986,2]
[323134641,1713703849980,-715.59,0.00016986,2]
[323134642,1713703849989,-958.53,0.00016986,2]
[323134643,1713703849998,-554.32,0.00016986,2]
[323134644,1713703850007,-500.0,0.00016986,2]
[323134645,1713703850017,-709.68,0.00016986,2]
[323134646,1713703850030,-1289.35,0.00016986,2]